[Event "Titled Tuesday Blitz February 15 Early 2022"]
[White "Cherniaiev, Tykhon"]
[Black "Shvedova, Alexandra"]
[WhiteFideId "14182360"]
[BlackFideId "54154782"]
[WhiteElo "2289"]
[BlackElo "1920"]
[Result "1-0"]
[Round "03"]
[TimeControl "180+1"]
[Date "2022.02.15"]
[WhiteClock "0:00:04"]
[BlackClock "0:00:01"]

1. Nf3 {[%clk 0:03:00]}  Nf6 {[%clk 0:02:58]} 2. c4 {[%clk 0:02:57]}  e6 {[%clk 0:02:58]} 3. b3 {[%clk 0:02:58]}  d5 {[%clk 0:02:54]} 4. Bb2 {[%clk 0:02:58]}  b6 {[%clk 0:02:51]} 5. g3 {[%clk 0:02:58]}  Bb7 {[%clk 0:02:51]} 6. Bg2 {[%clk 0:02:59]}  Nbd7 {[%clk 0:02:51]} 7. O-O {[%clk 0:02:59]}  Bd6 {[%clk 0:02:50]} 8. d4 {[%clk 0:02:59]}  dxc4 {[%clk 0:02:48]} 9. bxc4 {[%clk 0:02:59]}  c5 {[%clk 0:02:49]} 10. dxc5 {[%clk 0:02:59]}  Bxc5 {[%clk 0:02:49]} 11. Nc3 {[%clk 0:02:59]}  O-O {[%clk 0:02:47]} 12. Qc2 {[%clk 0:02:58]}  Rc8 {[%clk 0:02:41]} 13. Rad1 {[%clk 0:02:57]}  Qc7 {[%clk 0:02:32]} 14. Nb5 {[%clk 0:02:57]}  Qb8 {[%clk 0:02:32]} 15. Qc3 {[%clk 0:01:45]}  Rfd8 {[%clk 0:02:24]} 16. Ne5 {[%clk 0:01:38]}  Nxe5 {[%clk 0:02:19]} 17. Qxe5 {[%clk 0:01:36]}  Bxg2 {[%clk 0:02:11]} 18. Qxb8 {[%clk 0:01:32]}  Rxb8 {[%clk 0:02:12]} 19. Kxg2 {[%clk 0:01:32]}  a6 {[%clk 0:02:03]} 20. Na7 {[%clk 0:01:24]}  Rxd1 {[%clk 0:01:49]} 21. Rxd1 {[%clk 0:01:23]}  Kf8 {[%clk 0:01:47]} 22. Be5 {[%clk 0:01:18]}  Ra8 {[%clk 0:01:43]} 23. Nc6 {[%clk 0:01:15]}  Rc8 {[%clk 0:01:39]} 24. Na7 {[%clk 0:01:07]}  Ra8 {[%clk 0:01:39]} 25. Nc6 {[%clk 0:01:08]}  Rc8 {[%clk 0:01:39]} 26. Nb8 {[%clk 0:00:27]}  a5 {[%clk 0:01:17]} 27. Nd7+ {[%clk 0:00:24]}  Nxd7 {[%clk 0:01:15]} 28. Rxd7 {[%clk 0:00:25]}  f6 {[%clk 0:00:44]} 29. Bc7 {[%clk 0:00:25]}  e5 {[%clk 0:00:33]} 30. e4 {[%clk 0:00:22]}  Bd4 {[%clk 0:00:25]} 31. f4 {[%clk 0:00:20]}  h5 {[%clk 0:00:17]} 32. Kf3 {[%clk 0:00:20]}  g6 {[%clk 0:00:14]} 33. h3 {[%clk 0:00:16]}  exf4 {[%clk 0:00:13]} 34. gxf4 {[%clk 0:00:14]}  Bc5 {[%clk 0:00:11]} 35. e5 {[%clk 0:00:13]}  fxe5 {[%clk 0:00:12]} 36. Bxe5 {[%clk 0:00:13]}  Be7 {[%clk 0:00:09]} 37. Rb7 {[%clk 0:00:12]}  Rxc4 {[%clk 0:00:08]} 38. Rxb6 {[%clk 0:00:12]}  Ra4 {[%clk 0:00:08]} 39. Rxg6 {[%clk 0:00:09]}  Rxa2 {[%clk 0:00:07]} 40. f5 {[%clk 0:00:10]}  Ra3+ {[%clk 0:00:06]} 41. Ke4 {[%clk 0:00:10]}  Rxh3 {[%clk 0:00:06]} 42. Kd5 {[%clk 0:00:05]}  Rb3 {[%clk 0:00:04]} 43. Ra6 {[%clk 0:00:03]}  Kf7 {[%clk 0:00:03]} 44. Rxa5 {[%clk 0:00:03]}  Rb4 {[%clk 0:00:02]} 45. Ra7 {[%clk 0:00:03]}  Ke8 {[%clk 0:00:01]} 46. f6 {[%clk 0:00:03]}  Bxf6 {[%clk 0:00:02]} 47. Bxf6 {[%clk 0:00:03]}  Rb1 {[%clk 0:00:01]} 48. Be5 {[%clk 0:00:04]}  Re1 {[%clk 0:00:01]} 49. Ke6 {[%clk 0:00:04]} 1-0


[Site "https://www.chess.com"]

[Event "Titled Tuesday Blitz February 15 Early 2022"]
[White "Corrales Jimenez, Fidel"]
[Black "Ronka, Erik"]
[WhiteFideId "3506690"]
[BlackFideId "505080"]
[WhiteElo "2541"]
[BlackElo "2264"]
[Result "1-0"]
[Round "03"]
[TimeControl "180+1"]
[Date "2022.02.15"]
[WhiteClock "0:00:49"]
[BlackClock "0:00:02"]

1. d4 {[%clk 0:02:59]}  Nf6 {[%clk 0:02:59]} 2. c4 {[%clk 0:02:59]}  g6 {[%clk 0:03:00]} 3. Nc3 {[%clk 0:02:59]}  Bg7 {[%clk 0:03:00]} 4. e4 {[%clk 0:02:59]}  d6 {[%clk 0:03:01]} 5. Be2 {[%clk 0:02:59]}  O-O {[%clk 0:03:01]} 6. Be3 {[%clk 0:02:59]}  e5 {[%clk 0:03:00]} 7. d5 {[%clk 0:03:00]}  Na6 {[%clk 0:03:00]} 8. h4 {[%clk 0:03:00]}  h5 {[%clk 0:02:52]} 9. Nh3 {[%clk 0:02:55]}  Nc5 {[%clk 0:02:48]} 10. f3 {[%clk 0:02:55]}  a5 {[%clk 0:02:40]} 11. Nf2 {[%clk 0:02:36]}  c6 {[%clk 0:02:20]} 12. Qd2 {[%clk 0:02:35]}  cxd5 {[%clk 0:02:20]} 13. cxd5 {[%clk 0:02:36]}  Bd7 {[%clk 0:02:14]} 14. Bb5 {[%clk 0:02:30]}  Bxb5 {[%clk 0:01:44]} 15. Nxb5 {[%clk 0:02:31]}  a4 {[%clk 0:01:45]} 16. Rc1 {[%clk 0:02:16]}  Ra5 {[%clk 0:01:40]} 17. Nxd6 {[%clk 0:02:13]}  Nfd7 {[%clk 0:01:20]} 18. Qb4 {[%clk 0:02:02]}  b6 {[%clk 0:00:58]} 19. Nc4 {[%clk 0:01:59]}  Ra8 {[%clk 0:00:55]} 20. Bg5 {[%clk 0:01:58]}  Bf6 {[%clk 0:00:52]} 21. Qd2 {[%clk 0:01:56]}  b5 {[%clk 0:00:50]} 22. Bxf6 {[%clk 0:01:54]}  Qxf6 {[%clk 0:00:48]} 23. Ne3 {[%clk 0:01:53]}  Rac8 {[%clk 0:00:46]} 24. Kf1 {[%clk 0:01:49]}  Qf4 {[%clk 0:00:44]} 25. Rd1 {[%clk 0:01:43]}  f5 {[%clk 0:00:39]} 26. exf5 {[%clk 0:01:43]}  e4 {[%clk 0:00:36]} 27. Rh3 {[%clk 0:01:35]}  Ne5 {[%clk 0:00:23]} 28. d6 {[%clk 0:01:18]}  Ned3 {[%clk 0:00:23]} 29. Nxe4 {[%clk 0:01:11]}  Nxe4 {[%clk 0:00:20]} 30. Qxd3 {[%clk 0:01:11]}  Ng3+ {[%clk 0:00:19]} 31. Kf2 {[%clk 0:01:09]}  Nxf5 {[%clk 0:00:15]} 32. d7 {[%clk 0:01:08]}  Rcd8 {[%clk 0:00:14]} 33. Qd5+ {[%clk 0:01:06]}  Kh7 {[%clk 0:00:12]} 34. Nxf5 {[%clk 0:01:03]}  Rxf5 {[%clk 0:00:13]} 35. Qd4 {[%clk 0:01:03]}  Qc7 {[%clk 0:00:12]} 36. Rg3 {[%clk 0:00:53]}  Rf7 {[%clk 0:00:08]} 37. Qe4 {[%clk 0:00:51]}  Qb6+ {[%clk 0:00:07]} 38. Kf1 {[%clk 0:00:48]}  Rdxd7 {[%clk 0:00:07]} 39. Rxd7 {[%clk 0:00:48]}  Rxd7 {[%clk 0:00:08]} 40. Rg5 {[%clk 0:00:48]}  Rd1+ {[%clk 0:00:07]} 41. Ke2 {[%clk 0:00:48]}  Rd6 {[%clk 0:00:05]} 42. Rxh5+ {[%clk 0:00:48]}  Kg7 {[%clk 0:00:04]} 43. Re5 {[%clk 0:00:48]}  Kh6 {[%clk 0:00:02]} 44. Qf4+ {[%clk 0:00:47]}  Kg7 {[%clk 0:00:03]} 45. Re7+ {[%clk 0:00:48]}  Kg8 {[%clk 0:00:02]} 46. Qf7+ {[%clk 0:00:48]}  Kh8 {[%clk 0:00:02]} 47. Qf8# {[%clk 0:00:49]} 1-0


[Site "https://www.chess.com"]

[Event "Titled Tuesday Blitz February 15 Early 2022"]
[White "Cramling Bellon, Anna"]
[Black "Domingo Nunez, Alejandro"]
[WhiteFideId "32009232"]
[BlackFideId "22245561"]
[WhiteElo "1905"]
[BlackElo "2215"]
[Result "0-1"]
[Round "03"]
[TimeControl "180+1"]
[Date "2022.02.15"]
[WhiteClock "0:00:03"]
[BlackClock "0:00:17"]

1. d4 {[%clk 0:03:00]}  g6 {[%clk 0:03:00]} 2. c4 {[%clk 0:02:53]}  Bg7 {[%clk 0:02:59]} 3. e4 {[%clk 0:02:45]}  d6 {[%clk 0:03:00]} 4. Nc3 {[%clk 0:02:41]}  Nd7 {[%clk 0:03:00]} 5. h3 {[%clk 0:02:39]}  e5 {[%clk 0:03:01]} 6. Nf3 {[%clk 0:02:36]}  Ne7 {[%clk 0:02:59]} 7. Be3 {[%clk 0:02:30]}  O-O {[%clk 0:02:58]} 8. Be2 {[%clk 0:02:28]}  exd4 {[%clk 0:02:58]} 9. Nxd4 {[%clk 0:02:28]}  Nc6 {[%clk 0:02:58]} 10. Nxc6 {[%clk 0:02:28]}  bxc6 {[%clk 0:02:59]} 11. Qd2 {[%clk 0:02:27]}  Rb8 {[%clk 0:02:59]} 12. O-O {[%clk 0:02:26]}  Re8 {[%clk 0:03:00]} 13. f3 {[%clk 0:02:25]}  Nc5 {[%clk 0:02:58]} 14. Rfd1 {[%clk 0:02:24]}  Be6 {[%clk 0:02:57]} 15. b4 {[%clk 0:02:20]}  Nd7 {[%clk 0:02:49]} 16. Rab1 {[%clk 0:02:17]}  Ne5 {[%clk 0:02:42]} 17. c5 {[%clk 0:02:05]}  d5 {[%clk 0:02:23]} 18. exd5 {[%clk 0:02:03]}  cxd5 {[%clk 0:02:24]} 19. Nxd5 {[%clk 0:01:59]}  Bf5 {[%clk 0:02:08]} 20. Rbc1 {[%clk 0:01:29]}  c6 {[%clk 0:01:47]} 21. Nf4 {[%clk 0:01:20]}  Qh4 {[%clk 0:01:47]} 22. Bf2 {[%clk 0:01:13]}  Qg5 {[%clk 0:01:45]} 23. h4 {[%clk 0:00:52]}  Qf6 {[%clk 0:01:41]} 24. Nd3 {[%clk 0:00:46]}  Bxd3 {[%clk 0:01:08]} 25. Bxd3 {[%clk 0:00:47]}  Rbd8 {[%clk 0:01:09]} 26. Qc2 {[%clk 0:00:34]}  Nxf3+ {[%clk 0:01:07]} 27. gxf3 {[%clk 0:00:30]}  Qxf3 {[%clk 0:01:08]} 28. Bf1 {[%clk 0:00:24]}  Be5 {[%clk 0:01:03]} 29. Bg2 {[%clk 0:00:15]}  Qf4 {[%clk 0:01:02]} 30. Qe4 {[%clk 0:00:11]}  Qh2+ {[%clk 0:00:47]} 31. Kf1 {[%clk 0:00:11]}  Bb2 {[%clk 0:00:48]} 32. Rxd8 {[%clk 0:00:10]}  Rxd8 {[%clk 0:00:49]} 33. Qe7 {[%clk 0:00:09]}  Qb8 {[%clk 0:00:41]} 34. Re1 {[%clk 0:00:09]}  Bc3 {[%clk 0:00:39]} 35. Rb1 {[%clk 0:00:03]}  Re8 {[%clk 0:00:37]} 36. Qg5 {[%clk 0:00:03]}  Qb5+ {[%clk 0:00:26]} 37. Kg1 {[%clk 0:00:03]}  Qd3 {[%clk 0:00:27]} 38. Rf1 {[%clk 0:00:03]}  Bxb4 {[%clk 0:00:23]} 39. h5 {[%clk 0:00:03]}  Bd2 {[%clk 0:00:20]} 40. Qf6 {[%clk 0:00:03]}  Re6 {[%clk 0:00:17]} 41. Qd8+ {[%clk 0:00:03]}  Qxd8 {[%clk 0:00:17]} 0-1


[Site "https://www.chess.com"]

[Event "Titled Tuesday Blitz February 15 Early 2022"]
[White "Dauner, Benedikt"]
[Black "Korchmar, Vasiliy"]
[WhiteFideId "16225899"]
[BlackFideId "24131750"]
[WhiteElo "2230"]
[BlackElo "2370"]
[Result "0-1"]
[Round "03"]
[TimeControl "180+1"]
[Date "2022.02.15"]
[WhiteClock "0:00:02"]
[BlackClock "0:01:18"]

1. d4 {[%clk 0:03:00]}  Nf6 {[%clk 0:02:59]} 2. Nf3 {[%clk 0:03:00]}  g6 {[%clk 0:02:59]} 3. Nc3 {[%clk 0:03:00]}  d5 {[%clk 0:02:57]} 4. Bf4 {[%clk 0:03:00]}  a6 {[%clk 0:02:53]} 5. e3 {[%clk 0:02:58]}  Bg7 {[%clk 0:02:53]} 6. Be2 {[%clk 0:02:58]}  O-O {[%clk 0:02:53]} 7. h4 {[%clk 0:02:57]}  c5 {[%clk 0:02:46]} 8. Ne5 {[%clk 0:02:57]}  Qb6 {[%clk 0:02:24]} 9. Rb1 {[%clk 0:02:41]}  cxd4 {[%clk 0:02:20]} 10. exd4 {[%clk 0:02:40]}  Nc6 {[%clk 0:02:20]} 11. Nxc6 {[%clk 0:01:32]}  bxc6 {[%clk 0:02:21]} 12. h5 {[%clk 0:01:32]}  Ne4 {[%clk 0:02:11]} 13. Nxe4 {[%clk 0:01:20]}  dxe4 {[%clk 0:02:12]} 14. c3 {[%clk 0:01:12]}  Bf5 {[%clk 0:02:05]} 15. hxg6 {[%clk 0:01:09]}  hxg6 {[%clk 0:02:06]} 16. g4 {[%clk 0:01:02]}  Be6 {[%clk 0:02:04]} 17. Qd2 {[%clk 0:01:02]}  Bxa2 {[%clk 0:01:42]} 18. Ra1 {[%clk 0:00:38]}  Bd5 {[%clk 0:01:42]} 19. Rh2 {[%clk 0:00:28]}  Rfb8 {[%clk 0:01:27]} 20. Bxb8 {[%clk 0:00:20]}  Qxb8 {[%clk 0:01:28]} 21. b4 {[%clk 0:00:20]}  Qxh2 {[%clk 0:01:27]} 22. Kd1 {[%clk 0:00:03]}  Qxf2 {[%clk 0:01:24]} 23. Bxa6 {[%clk 0:00:02]}  Qxd2+ {[%clk 0:01:19]} 24. Kxd2 {[%clk 0:00:03]}  Bc4 {[%clk 0:01:15]} 25. b5 {[%clk 0:00:04]}  Bxb5 {[%clk 0:01:15]} 26. Rh1 {[%clk 0:00:03]}  Bxa6 {[%clk 0:01:14]} 27. Ke3 {[%clk 0:00:04]}  Bd3 {[%clk 0:01:13]} 28. g5 {[%clk 0:00:04]}  c5 {[%clk 0:01:12]} 29. dxc5 {[%clk 0:00:04]}  Bxc3 {[%clk 0:01:13]} 30. c6 {[%clk 0:00:04]}  Ba5 {[%clk 0:01:13]} 31. c7 {[%clk 0:00:04]}  Bb6+ {[%clk 0:01:13]} 32. Kf4 {[%clk 0:00:05]}  Bxc7+ {[%clk 0:01:14]} 33. Kg4 {[%clk 0:00:05]}  Bb6 {[%clk 0:01:15]} 34. Rf1 {[%clk 0:00:04]}  e3 {[%clk 0:01:15]} 35. Kf3 {[%clk 0:00:04]}  e2 {[%clk 0:01:16]} 36. Re1 {[%clk 0:00:04]}  Ba5 {[%clk 0:01:17]} 37. Rh1 {[%clk 0:00:03]}  e1=Q {[%clk 0:01:16]} 38. Rh3 {[%clk 0:00:03]}  Qe4+ {[%clk 0:01:16]} 39. Kg3 {[%clk 0:00:03]}  Be1+ {[%clk 0:01:17]} 40. Kh2 {[%clk 0:00:02]}  Ra2+ {[%clk 0:01:17]} 41. Kg1 {[%clk 0:00:02]}  Qg2# {[%clk 0:01:18]} 0-1


[Site "https://www.chess.com"]

[Event "Titled Tuesday Blitz February 15 Early 2022"]
[White "De Silva, L M S T"]
[Black "Gulatz, Maurice"]
[WhiteFideId "9953698"]
[BlackFideId "24642746"]
[WhiteElo "1631"]
[BlackElo "2150"]
[Result "1-0"]
[Round "03"]
[TimeControl "180+1"]
[Date "2022.02.15"]
[WhiteClock "0:01:41"]
[BlackClock "0:00:35"]

1. e4 {[%clk 0:03:00]}  c6 {[%clk 0:02:59]} 2. d4 {[%clk 0:02:59]}  d5 {[%clk 0:02:59]} 3. Nc3 {[%clk 0:03:00]}  dxe4 {[%clk 0:02:59]} 4. Nxe4 {[%clk 0:03:00]}  Bf5 {[%clk 0:02:59]} 5. Ng3 {[%clk 0:03:01]}  Bg6 {[%clk 0:02:59]} 6. h4 {[%clk 0:03:01]}  h6 {[%clk 0:02:59]} 7. Nf3 {[%clk 0:03:01]}  Nd7 {[%clk 0:02:59]} 8. h5 {[%clk 0:03:02]}  Bh7 {[%clk 0:02:59]} 9. Bd3 {[%clk 0:03:02]}  Bxd3 {[%clk 0:02:59]} 10. Qxd3 {[%clk 0:03:03]}  e6 {[%clk 0:03:00]} 11. Bd2 {[%clk 0:03:04]}  Ngf6 {[%clk 0:03:00]} 12. O-O-O {[%clk 0:03:05]}  Be7 {[%clk 0:03:00]} 13. Kb1 {[%clk 0:03:05]}  O-O {[%clk 0:02:59]} 14. Ne4 {[%clk 0:03:06]}  Nxe4 {[%clk 0:02:59]} 15. Qxe4 {[%clk 0:03:06]}  Nf6 {[%clk 0:02:59]} 16. Qe2 {[%clk 0:03:07]}  Qd5 {[%clk 0:02:50]} 17. Ne5 {[%clk 0:03:07]}  Qe4 {[%clk 0:02:35]} 18. Qxe4 {[%clk 0:03:07]}  Nxe4 {[%clk 0:02:36]} 19. Be3 {[%clk 0:03:08]}  Rad8 {[%clk 0:02:33]} 20. g4 {[%clk 0:03:03]}  f5 {[%clk 0:02:24]} 21. Ng6 {[%clk 0:03:01]}  Rfe8 {[%clk 0:02:20]} 22. f3 {[%clk 0:03:01]}  Nd6 {[%clk 0:02:11]} 23. Bf4 {[%clk 0:02:42]}  Bf6 {[%clk 0:01:57]} 24. Bxd6 {[%clk 0:02:40]}  Rxd6 {[%clk 0:01:56]} 25. c3 {[%clk 0:02:41]}  b6 {[%clk 0:01:42]} 26. Rde1 {[%clk 0:02:36]}  Rdd8 {[%clk 0:01:35]} 27. Re2 {[%clk 0:02:32]}  Kf7 {[%clk 0:01:32]} 28. Rhe1 {[%clk 0:02:30]}  c5 {[%clk 0:01:17]} 29. dxc5 {[%clk 0:01:54]}  bxc5 {[%clk 0:01:16]} 30. Kc2 {[%clk 0:01:54]}  fxg4 {[%clk 0:01:09]} 31. fxg4 {[%clk 0:01:52]}  Rd6 {[%clk 0:01:01]} 32. Nf4 {[%clk 0:01:51]}  Bg5 {[%clk 0:00:57]} 33. Nd3 {[%clk 0:01:50]}  Rc8 {[%clk 0:00:45]} 34. Ne5+ {[%clk 0:01:50]}  Kg8 {[%clk 0:00:42]} 35. Nc4 {[%clk 0:01:51]}  Ra6 {[%clk 0:00:38]} 36. Rxe6 {[%clk 0:01:43]}  Rxa2 {[%clk 0:00:35]} 37. Kb3 {[%clk 0:01:41]} 1-0


[Site "https://www.chess.com"]

[Event "Titled Tuesday Blitz February 15 Early 2022"]
[White "De Souza Sa, Apolo"]
[Black "Arias, Juan Cruz"]
[WhiteFideId "324225390"]
[BlackFideId "118540"]
[WhiteElo "1828"]
[BlackElo "2083"]
[Result "0-1"]
[Round "03"]
[TimeControl "180+1"]
[Date "2022.02.15"]
[WhiteClock "0:00:10"]
[BlackClock "0:00:38"]

1. d4 {[%clk 0:03:00]}  Nf6 {[%clk 0:02:59]} 2. c4 {[%clk 0:03:01]}  c5 {[%clk 0:02:58]} 3. d5 {[%clk 0:03:01]}  e5 {[%clk 0:02:59]} 4. Nc3 {[%clk 0:03:00]}  d6 {[%clk 0:02:59]} 5. e4 {[%clk 0:03:01]}  Nbd7 {[%clk 0:02:59]} 6. Be2 {[%clk 0:03:01]}  Be7 {[%clk 0:03:00]} 7. Bg4 {[%clk 0:03:01]}  Nxg4 {[%clk 0:02:57]} 8. Qxg4 {[%clk 0:03:02]}  O-O {[%clk 0:02:56]} 9. Bh6 {[%clk 0:02:50]}  Bf6 {[%clk 0:02:55]} 10. Be3 {[%clk 0:02:49]}  a6 {[%clk 0:02:48]} 11. a4 {[%clk 0:02:48]}  Qa5 {[%clk 0:02:44]} 12. Qd1 {[%clk 0:02:46]}  Qb4 {[%clk 0:02:44]} 13. Qc2 {[%clk 0:02:40]}  Qxc4 {[%clk 0:02:41]} 14. a5 {[%clk 0:02:12]}  b5 {[%clk 0:02:34]} 15. Nge2 {[%clk 0:02:06]}  Be7 {[%clk 0:02:00]} 16. O-O {[%clk 0:01:31]}  f5 {[%clk 0:01:53]} 17. b3 {[%clk 0:01:17]}  Qb4 {[%clk 0:01:36]} 18. exf5 {[%clk 0:01:15]}  Qh4 {[%clk 0:01:30]} 19. Ng3 {[%clk 0:01:11]}  Nf6 {[%clk 0:01:25]} 20. Rad1 {[%clk 0:01:00]}  Ng4 {[%clk 0:01:18]} 21. Rfe1 {[%clk 0:00:48]}  Qxh2+ {[%clk 0:01:13]} 22. Kf1 {[%clk 0:00:48]}  Bh4 {[%clk 0:01:08]} 23. Nce4 {[%clk 0:00:34]}  Bxf5 {[%clk 0:00:56]} 24. Nxf5 {[%clk 0:00:32]}  Rxf5 {[%clk 0:00:56]} 25. Nxd6 {[%clk 0:00:22]}  Nxe3+ {[%clk 0:00:53]} 26. Rxe3 {[%clk 0:00:19]}  Rxf2+ {[%clk 0:00:48]} 27. Qxf2 {[%clk 0:00:18]}  Bxf2 {[%clk 0:00:47]} 28. Rf3 {[%clk 0:00:18]}  Bd4 {[%clk 0:00:44]} 29. Ne4 {[%clk 0:00:18]}  Rf8 {[%clk 0:00:42]} 30. d6 {[%clk 0:00:17]}  Qh1+ {[%clk 0:00:35]} 31. Ke2 {[%clk 0:00:13]}  Qxg2+ {[%clk 0:00:36]} 32. Rf2 {[%clk 0:00:09]}  Rxf2+ {[%clk 0:00:35]} 33. Nxf2 {[%clk 0:00:09]}  Qxf2+ {[%clk 0:00:36]} 34. Kd3 {[%clk 0:00:09]}  Qe3+ {[%clk 0:00:37]} 35. Kc2 {[%clk 0:00:10]}  Qc3+ {[%clk 0:00:38]} 0-1


[Site "https://www.chess.com"]

[Event "Titled Tuesday Blitz February 15 Early 2022"]
[White "Deepan Chakkravarthy J."]
[Black "Tissir, Mohamed"]
[WhiteFideId "5011132"]
[BlackFideId "9000240"]
[WhiteElo "2490"]
[BlackElo "2464"]
[Result "1-0"]
[Round "03"]
[TimeControl "180+1"]
[Date "2022.02.15"]
[WhiteClock "0:00:09"]
[BlackClock "0:00:04"]

1. Nf3 {[%clk 0:03:00]}  Nf6 {[%clk 0:02:58]} 2. g3 {[%clk 0:03:00]}  g6 {[%clk 0:02:55]} 3. Bg2 {[%clk 0:03:00]}  Bg7 {[%clk 0:02:55]} 4. O-O {[%clk 0:03:01]}  O-O {[%clk 0:02:55]} 5. c4 {[%clk 0:03:01]}  d6 {[%clk 0:02:55]} 6. Nc3 {[%clk 0:03:00]}  a6 {[%clk 0:02:55]} 7. d3 {[%clk 0:02:59]}  h6 {[%clk 0:02:51]} 8. Rb1 {[%clk 0:02:59]}  e5 {[%clk 0:02:50]} 9. b4 {[%clk 0:02:58]}  Re8 {[%clk 0:02:49]} 10. Nd2 {[%clk 0:02:52]}  Nbd7 {[%clk 0:02:19]} 11. Nb3 {[%clk 0:02:45]}  Nf8 {[%clk 0:02:16]} 12. a4 {[%clk 0:02:42]}  h5 {[%clk 0:02:13]} 13. a5 {[%clk 0:02:15]}  h4 {[%clk 0:01:48]} 14. b5 {[%clk 0:02:14]}  Rb8 {[%clk 0:01:28]} 15. Nd2 {[%clk 0:02:07]}  axb5 {[%clk 0:01:13]} 16. cxb5 {[%clk 0:02:05]}  d5 {[%clk 0:01:10]} 17. Ba3 {[%clk 0:01:57]}  hxg3 {[%clk 0:01:09]} 18. hxg3 {[%clk 0:01:56]}  N8h7 {[%clk 0:01:08]} 19. Nf3 {[%clk 0:01:47]}  Qd7 {[%clk 0:00:32]} 20. d4 {[%clk 0:01:44]}  e4 {[%clk 0:00:29]} 21. Ne5 {[%clk 0:01:43]}  Qf5 {[%clk 0:00:30]} 22. Qd2 {[%clk 0:00:48]}  Ng5 {[%clk 0:00:28]} 23. Qf4 {[%clk 0:00:27]}  Nh3+ {[%clk 0:00:26]} 24. Bxh3 {[%clk 0:00:27]}  Qxh3 {[%clk 0:00:27]} 25. Qh4 {[%clk 0:00:26]}  Qf5 {[%clk 0:00:22]} 26. Nd1 {[%clk 0:00:22]}  Ng4 {[%clk 0:00:10]} 27. Nxg4 {[%clk 0:00:21]}  Qxg4 {[%clk 0:00:11]} 28. Qxg4 {[%clk 0:00:21]}  Bxg4 {[%clk 0:00:11]} 29. Ne3 {[%clk 0:00:21]}  Bxe2 {[%clk 0:00:11]} 30. Nxd5 {[%clk 0:00:21]}  Bxf1 {[%clk 0:00:10]} 31. Kxf1 {[%clk 0:00:20]}  c6 {[%clk 0:00:11]} 32. Nc7 {[%clk 0:00:17]}  Rec8 {[%clk 0:00:11]} 33. b6 {[%clk 0:00:14]}  Bxd4 {[%clk 0:00:11]} 34. Ke2 {[%clk 0:00:14]}  Kg7 {[%clk 0:00:11]} 35. Bd6 {[%clk 0:00:12]}  Rd8 {[%clk 0:00:10]} 36. Bf4 {[%clk 0:00:12]}  Rbc8 {[%clk 0:00:08]} 37. a6 {[%clk 0:00:10]}  bxa6 {[%clk 0:00:08]} 38. b7 {[%clk 0:00:11]}  Rb8 {[%clk 0:00:08]} 39. Nxa6 {[%clk 0:00:11]}  f6 {[%clk 0:00:04]} 40. Bxb8 {[%clk 0:00:09]} 1-0


[Site "https://www.chess.com"]

[Event "Titled Tuesday Blitz February 15 Early 2022"]
[White "Demidov, Mikhail"]
[Black "Kucuksari, Kaan"]
[WhiteFideId "4197143"]
[BlackFideId "6380166"]
[WhiteElo "2525"]
[BlackElo "2305"]
[Result "0-1"]
[Round "03"]
[TimeControl "180+1"]
[Date "2022.02.15"]
[WhiteClock "0:00:37"]
[BlackClock "0:00:09"]

1. Nf3 {[%clk 0:03:00]}  Nf6 {[%clk 0:02:56]} 2. g3 {[%clk 0:03:00]}  g6 {[%clk 0:02:54]} 3. b3 {[%clk 0:03:01]}  Bg7 {[%clk 0:02:54]} 4. Bb2 {[%clk 0:03:01]}  O-O {[%clk 0:02:54]} 5. Bg2 {[%clk 0:03:02]}  d6 {[%clk 0:02:52]} 6. d4 {[%clk 0:03:02]}  a5 {[%clk 0:02:51]} 7. O-O {[%clk 0:03:01]}  a4 {[%clk 0:02:47]} 8. c4 {[%clk 0:03:01]}  c6 {[%clk 0:02:29]} 9. bxa4 {[%clk 0:02:50]}  Nbd7 {[%clk 0:02:23]} 10. Nc3 {[%clk 0:02:44]}  Nb6 {[%clk 0:02:19]} 11. Qb3 {[%clk 0:02:42]}  Be6 {[%clk 0:02:18]} 12. Nd2 {[%clk 0:02:42]}  d5 {[%clk 0:01:27]} 13. c5 {[%clk 0:02:39]}  Nc4 {[%clk 0:01:28]} 14. Bc1 {[%clk 0:02:23]}  Nd7 {[%clk 0:00:59]} 15. e3 {[%clk 0:02:22]}  Qa5 {[%clk 0:00:53]} 16. Ndb1 {[%clk 0:01:45]}  Rfb8 {[%clk 0:00:40]} 17. Ne2 {[%clk 0:01:11]}  Nxc5 {[%clk 0:00:24]} 18. Qd1 {[%clk 0:01:11]}  Nxa4 {[%clk 0:00:18]} 19. Nf4 {[%clk 0:01:11]}  Bf5 {[%clk 0:00:17]} 20. Nd3 {[%clk 0:01:07]}  Nc3 {[%clk 0:00:14]} 21. Qc2 {[%clk 0:00:55]}  Nxb1 {[%clk 0:00:11]} 22. Rxb1 {[%clk 0:00:51]}  Qxa2 {[%clk 0:00:11]} 23. Qxa2 {[%clk 0:00:50]}  Rxa2 {[%clk 0:00:12]} 24. Rb3 {[%clk 0:00:51]}  Bxd3 {[%clk 0:00:10]} 25. Rxd3 {[%clk 0:00:52]}  b5 {[%clk 0:00:10]} 26. e4 {[%clk 0:00:48]}  e6 {[%clk 0:00:10]} 27. Bf4 {[%clk 0:00:37]}  Rba8 {[%clk 0:00:09]} 0-1


[Site "https://www.chess.com"]

[Event "Titled Tuesday Blitz February 15 Early 2022"]
[White "Demin, Vladimir"]
[Black "Lauridsen, Jesper Morch"]
[WhiteFideId "4167457"]
[BlackFideId "1401890"]
[WhiteElo "2470"]
[BlackElo "2200"]
[Result "1-0"]
[Round "03"]
[TimeControl "180+1"]
[Date "2022.02.15"]
[WhiteClock "0:00:56"]
[BlackClock "0:00:10"]

1. d4 {[%clk 0:03:00]}  d5 {[%clk 0:02:59]} 2. Bf4 {[%clk 0:02:59]}  e6 {[%clk 0:02:58]} 3. f3 {[%clk 0:02:57]}  Bd6 {[%clk 0:02:57]} 4. Bxd6 {[%clk 0:02:56]}  Qxd6 {[%clk 0:02:56]} 5. Nc3 {[%clk 0:02:53]}  Nf6 {[%clk 0:02:48]} 6. e4 {[%clk 0:02:53]}  dxe4 {[%clk 0:02:18]} 7. fxe4 {[%clk 0:02:54]}  Qb4 {[%clk 0:02:17]} 8. Qd2 {[%clk 0:02:40]}  Qxb2 {[%clk 0:02:05]} 9. Rb1 {[%clk 0:02:38]}  Qa3 {[%clk 0:02:05]} 10. Nf3 {[%clk 0:02:25]}  a6 {[%clk 0:01:49]} 11. Bd3 {[%clk 0:02:22]}  Qa5 {[%clk 0:01:41]} 12. O-O {[%clk 0:02:20]}  Nc6 {[%clk 0:01:24]} 13. e5 {[%clk 0:02:16]}  Nd5 {[%clk 0:01:19]} 14. Nxd5 {[%clk 0:02:16]}  Qxd5 {[%clk 0:01:11]} 15. c4 {[%clk 0:02:11]}  Qd8 {[%clk 0:01:05]} 16. Be4 {[%clk 0:02:08]}  Qe7 {[%clk 0:00:48]} 17. Ng5 {[%clk 0:01:57]}  f5 {[%clk 0:00:39]} 18. exf6 {[%clk 0:01:55]}  gxf6 {[%clk 0:00:38]} 19. Bxc6+ {[%clk 0:01:44]}  bxc6 {[%clk 0:00:37]} 20. Ne4 {[%clk 0:01:44]}  f5 {[%clk 0:00:24]} 21. Nc5 {[%clk 0:01:43]}  O-O {[%clk 0:00:22]} 22. Rbe1 {[%clk 0:01:33]}  Bd7 {[%clk 0:00:21]} 23. Qf4 {[%clk 0:01:26]}  Rf6 {[%clk 0:00:17]} 24. Qxc7 {[%clk 0:01:25]}  Rd8 {[%clk 0:00:16]} 25. Re5 {[%clk 0:01:21]}  Rg6 {[%clk 0:00:15]} 26. g3 {[%clk 0:01:17]}  h5 {[%clk 0:00:13]} 27. Rfxf5 {[%clk 0:01:09]}  h4 {[%clk 0:00:13]} 28. Kf2 {[%clk 0:00:57]}  hxg3+ {[%clk 0:00:12]} 29. hxg3 {[%clk 0:00:58]}  Qh7 {[%clk 0:00:10]} 30. Qxd8+ {[%clk 0:00:56]} 1-0


[Site "https://www.chess.com"]